bitfinex-derivatives/quotes_BTCF0:USTF0_20250902
["timestamp","ask_amount","ask_price","bid_price","bid_amount"]
[1756828927113,0.01980169,110980.0,110970.0,2.18544596]
[1756828927401,0.01980169,110980.0,110970.0,2.10680351]
[1756828927596,0.01980169,110980.0,110970.0,2.10664351]
[1756828927796,0.01980169,110980.0,110970.0,2.11064351]
[1756828928197,0.01979832,110990.0,110980.0,0.1268046]
[1756828928404,0.01970069,111010.0,111000.0,0.0843]
[1756828928707,0.01970069,111010.0,111000.0,0.90202081]
[1756828928909,0.01970069,111010.0,111000.0,1.76382081]
[1756828929707,0.04429069,111010.0,111000.0,1.76382081]
[1756828929906,0.10400069,111010.0,111000.0,1.76382081]
[1756828930102,0.71480069,111010.0,111000.0,0.9459]
[1756828930297,0.35400069,111010.0,111000.0,0.9459]
[1756828930498,0.35700069,111010.0,111000.0,0.9459]
[1756828930697,0.35700069,111010.0,111000.0,0.0843]
[1756828930896,0.35700069,111010.0,111000.0,0.04759]
[1756828931406,0.35400069,111010.0,111000.0,0.0843]
[1756828931714,0.35800069,111010.0,111000.0,0.0843]
[1756828932101,0.71880069,111010.0,111000.0,0.0843]
[1756828932303,0.35800069,111010.0,111000.0,0.0843]
[1756828932608,0.07148069,111010.0,111000.0,0.90202081]
[1756828933304,0.46880069,111010.0,111000.0,0.54122081]
[1756828935003,0.10800069,111010.0,111000.0,0.54122081]
[1756828937310,0.004,111010.0,111000.0,0.54122081]
[1756828937606,0.02859,111010.0,111000.0,0.90202081]
[1756828937807,0.004,111010.0,111000.0,0.91700081]
[1756828938009,0.004,111010.0,111000.0,0.54122081]
[1756828938209,0.08803,111010.0,111000.0,0.54122081]
[1756828938504,0.05151,111010.0,111000.0,0.90202081]
[1756828938809,0.02859,111010.0,111000.0,0.54122081]
[1756828939129,0.02859,111010.0,111000.0,1.40270081]
[1756828939130,0.08803,111010.0,111000.0,1.40270081]
[1756828939795,0.08603,111010.0,111000.0,1.40270081]
[1756828940208,0.08603,111010.0,111000.0,0.54122081]
[1756828941708,0.08703,111010.0,111000.0,0.54122081]
[1756828942612,0.003,111010.0,111000.0,0.54122081]
[1756828942811,0.05051,111010.0,111000.0,0.54122081]
[1756828943004,0.08703,111010.0,111000.0,0.54122081]
[1756828943604,0.08703,111010.0,111000.0,0.0843]
[1756828943810,0.08703,111010.0,111000.0,0.54122081]
[1756828944310,0.05051,111010.0,111000.0,0.54122081]
[1756828944509,0.003,111010.0,111000.0,0.90202081]
[1756828944705,0.003,111010.0,111000.0,1.25707751]
[1756828945305,0.003,111010.0,111000.0,1.33775996]
[1756828946013,0.003,111010.0,111000.0,1.25707751]
[1756828946211,0.02000472,111020.0,111010.0,0.0900664]
[1756828946411,0.01970088,111040.0,111030.0,0.08031]
[1756828946612,0.01970088,111040.0,111030.0,1.75943081]
[1756828947207,0.01970088,111040.0,111030.0,1.75939081]
[1756828947618,0.02470088,111040.0,111030.0,1.75939081]
[1756828948413,0.02470088,111040.0,111030.0,1.30247]
[1756828948610,0.02470088,111040.0,111030.0,0.89803081]
[1756828948819,0.02470088,111040.0,111030.0,1.75935081]
[1756828949320,0.02470088,111040.0,111030.0,0.89803081]
[1756828949616,0.10873088,111040.0,111030.0,0.08031]
[1756828949810,0.10873088,111040.0,111030.0,1.39651081]
[1756828951725,0.04929088,111040.0,111030.0,1.39651081]
[1756828951909,0.02470088,111040.0,111030.0,1.39651081]
[1756828952113,0.02470088,111040.0,111030.0,1.75731081]
[1756828952521,0.02470088,111040.0,111030.0,1.39651081]
[1756828952819,0.10873088,111040.0,111030.0,0.53723081]
[1756828953023,0.10873088,111040.0,111030.0,1.39843081]
[1756828953720,0.46953088,111040.0,111030.0,0.53723081]
[1756828953924,0.71953088,111040.0,111030.0,0.08031]
[1756828954123,0.71953088,111040.0,111030.0,0.0232]
[1756828954419,0.71953088,111040.0,111030.0,0.04637]
[1756828954621,0.71953088,111040.0,111030.0,0.08031]
[1756828955215,0.35873088,111040.0,111030.0,0.08031]
[1756828955415,0.35873088,111040.0,111030.0,0.53723081]
[1756828955619,0.07221088,111040.0,111030.0,0.53723081]
[1756828956422,0.10873088,111040.0,111030.0,0.53723081]
[1756828957021,0.10873088,111040.0,111030.0,0.08031]
[1756828957227,0.10873088,111040.0,111030.0,0.53723081]
[1756828958220,0.46953088,111040.0,111030.0,0.53723081]
[1756828958522,0.71953088,111040.0,111030.0,0.08031]
[1756828958717,0.05936,111030.0,111020.0,0.53823081]
[1756828958926,0.08228,111030.0,111020.0,0.08131]
[1756828959116,0.08228,111030.0,111010.0,0.02016536]
[1756828959117,0.08228,111020.0,111010.0,0.02016536]
[1756828959322,0.08228,111010.0,111000.0,0.09014512]
[1756828959521,0.44308,111010.0,111000.0,0.09014512]
[1756828959918,0.44308,111010.0,111000.0,0.53823081]
[1756828960928,0.08228,111010.0,111000.0,0.53823081]
[1756828961118,0.09129587,111010.0,111000.0,0.53823081]
[1756828962117,0.08228,111010.0,111000.0,0.53823081]
[1756828962522,0.44308,111010.0,111000.0,0.53823081]
[1756828963127,0.44508,111010.0,111000.0,0.53823081]
[1756828963327,0.08428,111010.0,111000.0,0.53823081]
[1756828963634,0.002,111010.0,111000.0,0.90242617]
[1756828963929,0.002,111010.0,111000.0,0.54162617]
[1756828964230,0.002,111010.0,111000.0,0.90242617]
[1756828964428,0.002,111010.0,111000.0,0.54162617]
[1756828964626,0.04892,111010.0,111000.0,0.54162617]
[1756828964933,0.04892,111010.0,111000.0,1.40266617]
[1756828965232,0.002,111010.0,111000.0,1.40266617]
[1756828965425,0.002,111010.0,111000.0,2.56385704]
[1756828965625,0.002,111010.0,111000.0,2.47378234]
[1756828965819,0.40204216,111020.0,111010.0,0.08297]
[1756828966026,0.46182216,111020.0,111010.0,0.08297]
[1756828966221,0.03611,111010.0,111000.0,0.94401]
[1756828966433,0.08303,111010.0,111000.0,0.94401]
[1756828966932,0.08303,111010.0,111000.0,1.40432617]
[1756828967325,0.08303,111010.0,111000.0,0.54328617]
[1756828967527,0.44383,111010.0,111000.0,0.54328617]
[1756828967728,0.05078,111000.0,110990.0,0.08297]
[1756828967929,0.11738857,111000.0,110990.0,0.08297]
[1756828968227,0.10271857,111000.0,110990.0,0.54328617]
[1756828968431,0.01968857,111000.0,110990.0,0.90408617]
[1756828969038,0.06660857,111000.0,110990.0,0.90408617]
[1756828969637,0.04293857,111000.0,110990.0,0.90408617]
[1756828969840,0.06660857,111000.0,110990.0,0.90408617]
[1756828970740,0.04293857,111000.0,110990.0,0.90408617]
[1756828971131,0.10271857,111000.0,110990.0,0.54328617]
[1756828971333,0.08303,110990.0,110980.0,0.08297]
[1756828971629,0.44383,110990.0,110980.0,0.08297]
[1756828972032,0.03611,110980.0,110970.0,0.10129446]
[1756828972231,0.44383,110980.0,110970.0,0.10129446]
[1756828973127,0.44383,110980.0,110970.0,0.08297]
[1756828973327,0.44383,110980.0,110970.0,0.08497]
[1756828974240,0.45283899,110980.0,110970.0,0.08497]
[1756828974430,0.45283899,110980.0,110970.0,0.05103]
[1756828974636,0.45283899,110980.0,110970.0,0.002]
[1756828975042,1.16315516,110980.0,110970.0,0.002]
[1756828975446,1.56391899,110980.0,110970.0,0.002]
[1756828976536,1.56395899,110980.0,110970.0,0.002]
[1756828976945,1.63456673,110980.0,110970.0,0.002]
[1756828977144,0.77344673,110980.0,110970.0,0.002]
[1756828979347,0.52344673,110980.0,110970.0,0.002]
[1756828979546,1.2337629,110980.0,110970.0,0.002]
[1756828979947,1.2337629,110980.0,110950.0,0.03394]
[1756828980146,0.44383,110960.0,110950.0,0.05814]
[1756828980641,0.44383,110960.0,110950.0,0.08297]
[1756828980844,0.90414617,110960.0,110940.0,0.03397]
[1756828981441,1.30495,110960.0,110940.0,0.03397]
[1756828982541,0.0977,110950.0,110940.0,0.083]
[1756828983447,0.46746849,110950.0,110940.0,0.083]
[1756828983643,0.46746849,110950.0,110940.0,0.04903]
[1756828983843,0.3608,110950.0,110940.0,0.54331617]
[1756828984049,0.02325,110960.0,110950.0,0.083]
[1756828984350,0.02046464,110970.0,110960.0,0.083]
[1756828984537,0.10349464,110970.0,110960.0,0.54331617]
[1756828984741,0.08303,110960.0,110950.0,0.4438]
[1756828985140,0.06738464,110970.0,110960.0,0.083]
[1756828985345,0.06738464,110970.0,110960.0,0.54331617]
[1756828985744,0.10349464,110970.0,110960.0,0.083]
[1756828986738,0.08303,110960.0,110950.0,0.3608]
[1756828986946,0.08303,110960.0,110950.0,0.385]
[1756828987146,0.44383,110960.0,110950.0,0.0242]
[1756828987441,0.08303,110960.0,110950.0,0.083]
[1756828987647,0.38405,110960.0,110950.0,0.54331617]
[1756828987841,0.38405,110960.0,110950.0,0.90411617]
[1756828987842,0.02325,110960.0,110950.0,0.90411617]
[1756828988242,0.02325,110960.0,110950.0,0.79331617]
[1756828988456,0.02325,110960.0,110950.0,1.15411617]
[1756828988943,0.02525,110960.0,110950.0,1.15411617]
[1756828989140,0.02525,110960.0,110950.0,0.6938]
[1756828989442,0.44594,110960.0,110950.0,0.083]
[1756828989643,0.08514,110960.0,110950.0,0.083]
[1756828990253,0.04892,110960.0,110950.0,0.54331617]
[1756828990444,0.002,110960.0,110950.0,0.79331617]
[1756828990645,0.08477,110960.0,110950.0,0.333]
[1756828990841,0.08477,110960.0,110950.0,0.083]
[1756828991751,0.04855,110960.0,110950.0,0.083]
[1756828992253,0.04855,110960.0,110950.0,0.54331617]
[1756828992748,0.08477,110960.0,110950.0,0.54331617]
[1756828992950,0.002,110960.0,110950.0,0.54331617]
[1756828993249,0.002,110960.0,110950.0,0.90411617]
[1756828993837,0.002,110960.0,110950.0,1.25607137]
[1756828994449,0.002,110960.0,110950.0,2.11711137]
[1756828994746,0.002,110960.0,110950.0,0.6938]
[1756828994960,0.002,110960.0,110950.0,2.01515617]
[1756828995137,0.002,110960.0,110950.0,2.10527137]
[1756828995341,0.002,110960.0,110950.0,2.01515617]
[1756828995650,0.10453464,110970.0,110960.0,0.08405]
[1756828996258,0.06831464,110970.0,110960.0,0.08405]
[1756828996637,0.06831464,110970.0,110960.0,0.90516617]
[1756828996638,0.02046464,110970.0,110960.0,0.90516617]
[1756828996844,0.02246464,110970.0,110960.0,0.90516617]
[1756828997849,0.02246464,110970.0,110960.0,1.76612617]
[1756828998045,0.07031464,110970.0,110960.0,1.76608617]
[1756828998249,0.02246464,110970.0,110960.0,1.76608617]
[1756828999249,0.02246464,110970.0,110960.0,1.85619327]
[1756828999449,0.02246464,110970.0,110960.0,0.90516617]
[1756828999753,0.02246464,110970.0,110960.0,1.76604617]
[1756829000250,0.02246464,110970.0,110960.0,1.30573]
[1756829000453,0.02246464,110970.0,110960.0,2.10615327]
[1756829000752,0.02246464,110970.0,110960.0,2.56646944]
[1756829000953,0.02246464,110970.0,110960.0,1.24527327]
[1756829001154,0.02246464,110970.0,110960.0,2.10611327]
[1756829001351,0.02246464,110970.0,110960.0,0.69485]
[1756829001554,0.02246464,110970.0,110960.0,0.90516617]
[1756829001758,0.02246464,110970.0,110960.0,1.76600617]
[1756829002055,0.02246464,110970.0,110960.0,0.90516617]
[1756829002257,0.02146464,110970.0,110960.0,1.76596617]
[1756829002450,0.02146464,110970.0,110960.0,1.85607327]
[1756829002644,0.02146464,110970.0,110960.0,1.76596617]
[1756829002943,0.02246464,110970.0,110960.0,1.76596617]
[1756829003149,0.10653464,110970.0,110960.0,0.44485]
[1756829003356,0.46733464,110970.0,110960.0,0.08405]
[1756829003756,0.49000962,110970.0,110960.0,0.08405]
[1756829003956,0.12920962,110970.0,110960.0,0.08405]
[1756829004357,0.49000962,110970.0,110960.0,0.08405]
[1756829004957,0.46733464,110970.0,110960.0,0.08405]
[1756829005154,1.14143081,110970.0,110950.0,0.39561]
[1756829005454,0.04785,110960.0,110950.0,1.30557]
[1756829005757,0.04785,110960.0,110950.0,0.90516617]
[1756829005958,0.04785,110960.0,110950.0,1.76588617]
[1756829007053,0.04785,110960.0,110950.0,1.65969129]
[1756829007359,0.04785,110960.0,110950.0,1.40508617]
[1756829007558,0.38226464,110970.0,110960.0,0.03481]
[1756829007759,0.04434464,110970.0,110960.0,0.08405]
[1756829007958,0.43011464,110970.0,110960.0,0.08405]
[1756829008259,0.46633464,110970.0,110960.0,0.08405]
[1756829008759,0.46533464,110970.0,110960.0,0.08405]
[1756829009461,0.46733464,110970.0,110960.0,0.08405]
[1756829012157,0.43111464,110970.0,110960.0,0.54436617]
[1756829012367,0.46733464,110970.0,110960.0,0.54436617]
[1756829012557,0.46733464,110970.0,110960.0,1.40492617]
[1756829013061,0.10653464,110970.0,110960.0,1.40492617]
[1756829013555,0.07031464,110970.0,110960.0,1.40492617]
[1756829015159,0.07031464,110970.0,110960.0,2.01572617]
[1756829015160,0.02246464,110970.0,110960.0,2.01572617]
[1756829015362,0.02246464,110970.0,110960.0,2.58426147]
[1756829015363,0.002,110970.0,110960.0,2.58426147]
[1756829015956,0.002,110970.0,110960.0,2.69724605]
[1756829016158,0.01968857,111000.0,110970.0,0.03481]
[1756829016357,0.06753857,111000.0,110990.0,0.54436617]
[1756829016761,0.10375857,111000.0,110990.0,0.54436617]
[1756829017863,0.10375857,111000.0,110990.0,0.08405]
[1756829018765,0.10475857,111000.0,110990.0,0.08405]
[1756829018968,0.10475857,111000.0,110990.0,0.54436617]
[1756829019468,0.10675857,111000.0,110990.0,0.08405]
[1756829019672,0.10675857,111000.0,110990.0,0.54436617]
[1756829019970,0.10675857,111000.0,110990.0,0.08405]
[1756829020168,0.10675857,111000.0,110990.0,0.54436617]
[1756829022075,0.10675857,111000.0,110990.0,0.08405]
[1756829022770,0.10675857,111000.0,110990.0,0.54436617]
[1756829023075,0.02268857,111000.0,110990.0,1.24524897]
[1756829023273,0.02268857,111000.0,110990.0,1.32617888]
[1756829023474,0.02268857,111000.0,110990.0,1.32303585]
[1756829023872,0.02268857,111000.0,110990.0,1.24210594]
[1756829024271,0.02268857,111000.0,110990.0,1.32290547]
[1756829025479,0.01968857,111000.0,110990.0,1.32290547]
[1756829026583,0.01968857,111000.0,110990.0,1.39646854]
[1756829026873,0.01968857,111000.0,110990.0,0.9392954]
[1756829027079,0.01968857,111000.0,110990.0,1.39646854]
[1756829027278,0.01968857,111000.0,110990.0,2.16638574]
[1756829027672,0.01968857,111000.0,110990.0,2.25646854]
[1756829028574,0.01968857,111000.0,110990.0,1.05638574]
[1756829028781,0.01968857,111000.0,110990.0,2.16630574]
[1756829029080,0.10215857,111000.0,110990.0,1.01749307]
[1756829029282,0.10215857,111000.0,110990.0,1.01745307]
[1756829030082,0.10215857,111000.0,110990.0,1.01858307]
[1756829030786,0.35215857,111000.0,110990.0,1.01858307]
[1756829030984,0.36685857,111000.0,110990.0,1.01858307]
[1756829031296,0.36685857,111000.0,110990.0,1.47575621]
[1756829031682,0.02068857,111000.0,110990.0,2.17663901]
[1756829031986,0.02068857,111000.0,110990.0,2.25743854]
[1756829032486,0.02068857,111000.0,110990.0,2.28962359]
[1756829033384,0.01968857,111000.0,110990.0,2.28962359]
[1756829033780,1e-08,111000.0,110990.0,2.28962359]
[1756829035291,0.01799216,111020.0,111000.0,0.0900723]
[1756829035482,0.01799216,111020.0,111010.0,2.16437974]
[1756829035984,0.4101,111050.0,111030.0,0.0832]
[1756829036183,0.38514,111050.0,111040.0,0.54037314]
[1756829036382,0.39536,111060.0,111040.0,0.63041544]
[1756829036577,0.44327,111060.0,111050.0,0.54037314]
[1756829036982,0.44327,111060.0,111050.0,1.39989314]
[1756829037191,0.44327,111060.0,111050.0,0.54037314]
[1756829038587,0.46335416,111060.0,111050.0,0.54037314]
[1756829039285,0.006,111060.0,111050.0,0.63040724]
[1756829039483,0.006,111060.0,111050.0,0.99120724]
[1756829039678,0.006,111060.0,111050.0,0.90117314]
[1756829039880,0.006,111060.0,111050.0,1.76049314]
[1756829040076,0.006,111060.0,111050.0,1.85052744]
[1756829040280,0.03034,111060.0,111050.0,1.76045314]
[1756829040584,0.006,111060.0,111050.0,1.85048744]
[1756829040893,0.006,111060.0,111050.0,0.99120744]
[1756829041090,0.006,111060.0,111050.0,1.85044744]
[1756829041389,0.006,111060.0,111050.0,1.85040744]
[1756829042188,0.006,111060.0,111050.0,2.10770744]
[1756829042591,0.46351863,111090.0,111080.0,0.04726]
[1756829042791,0.46351863,111090.0,111080.0,0.54037314]
[1756829043584,0.04458863,111090.0,111080.0,0.54037314]
[1756829043785,0.31815863,111090.0,111080.0,0.54037314]
[1756829044195,0.35271863,111090.0,111080.0,0.54037314]
[1756829044391,0.06815863,111090.0,111080.0,0.99118314]
[1756829044692,0.10271863,111090.0,111080.0,1.39937314]
[1756829044883,0.10471863,111090.0,111080.0,0.54037314]
[1756829045088,0.10471863,111090.0,111080.0,1.39937314]
[1756829045290,0.10471863,111090.0,111080.0,0.54037314]
[1756829045495,0.10471863,111090.0,111080.0,1.39929314]
[1756829046095,0.10471863,111090.0,111080.0,1.39925314]
[1756829046297,0.10471863,111090.0,111080.0,0.54037314]
[1756829046594,0.10471863,111090.0,111080.0,1.39925314]
[1756829046792,0.10471863,111090.0,111080.0,0.50443314]
[1756829047095,0.35471863,111090.0,111080.0,0.50443314]
[1756829047498,0.35471863,111090.0,111080.0,0.54037314]
[1756829047897,0.71551863,111090.0,111080.0,0.54037314]
[1756829048100,0.0356,111080.0,111070.0,1.55406894]
[1756829048293,0.0356,111080.0,111070.0,1.68638208]
[1756829048492,0.08365,111080.0,111070.0,1.73159208]
[1756829048692,0.04805,111080.0,111070.0,2.18241018]
[1756829048894,0.08365,111080.0,111070.0,1.73159208]
[1756829049296,0.08365,111080.0,111070.0,2.09239208]
[1756829049493,0.08465,111080.0,111070.0,2.18241018]
[1756829049798,0.08465,111080.0,111070.0,2.09239208]
[1756829050103,0.02548,111080.0,111070.0,2.09239208]
[1756829050602,0.02548,111080.0,111070.0,1.73159208]
[1756829050800,0.08465,111080.0,111070.0,0.87283208]
[1756829050991,0.08465,111080.0,111070.0,1.73155208]
[1756829051192,0.08465,111080.0,111070.0,1.73147208]
[1756829051800,0.04905,111080.0,111070.0,1.73147208]
[1756829052001,0.001,111080.0,111070.0,1.73147208]
[1756829052995,0.001,111080.0,111070.0,2.09227208]
[1756829054006,0.001,111080.0,111070.0,1.73147208]
[1756829054194,0.001,111080.0,111070.0,2.09227208]
[1756829054391,0.001,111080.0,111070.0,1.27417894]
[1756829054602,0.0366,111080.0,111070.0,1.73135208]
[1756829055102,0.08559,111080.0,111070.0,1.66060314]
[1756829055902,0.44639,111080.0,111070.0,0.34495]
[1756829056092,0.44639,111080.0,111070.0,0.74364314]
[1756829056294,0.44639,111080.0,111060.0,1.41598242]
[1756829056295,0.0356,111070.0,111060.0,1.41598242]
[1756829056602,0.08459,111060.0,111050.0,1.75862314]
[1756829057199,0.08459,111060.0,111050.0,1.39782314]
[1756829059401,0.08459,111060.0,111050.0,1.39882314]
[1756829060398,0.08459,111060.0,111050.0,0.94165]
[1756829060596,0.06428247,111070.0,111050.0,1.45291744]
[1756829060894,0.3964,111080.0,111060.0,0.62940934]
[1756829061091,0.40979,111080.0,111070.0,1.39774314]
[1756829061293,0.38528,111080.0,111070.0,1.39774314]
[1756829061596,0.69539,111080.0,111070.0,0.04627]
[1756829061802,0.69539,111080.0,111070.0,0.50344314]
[1756829061994,0.69539,111080.0,111070.0,0.53938314]
[1756829062391,0.69639,111080.0,111070.0,0.53938314]
[1756829062802,0.29999,111080.0,111070.0,0.53938314]
[1756829063009,0.69639,111080.0,111070.0,0.53938314]
[1756829064715,0.69639,111080.0,111070.0,0.04627]
[1756829064906,0.69639,111080.0,111070.0,0.02267]
[1756829065205,0.08459,111070.0,111060.0,0.08221]
[1756829065410,0.44539,111070.0,111060.0,0.04627]
[1756829065908,0.44539,111070.0,111060.0,0.50344314]
[1756829066212,0.44539,111070.0,111060.0,0.53938314]
[1756829066512,0.06008,111060.0,111050.0,0.89426]
[1756829066809,0.08459,111060.0,111050.0,1.39770314]
[1756829067605,0.44539,111060.0,111050.0,0.53938314]
[1756829068722,0.44539,111060.0,111050.0,0.54038314]
[1756829069413,0.08459,111060.0,111050.0,0.54038314]
[1756829070312,0.69539,111060.0,111050.0,0.001]
[1756829070608,0.73804422,111060.0,111050.0,0.001]
[1756829070805,1.59628422,111060.0,111050.0,0.001]
[1756829071001,0.08459,111030.0,111020.0,0.65450314]
[1756829071197,0.01433,111050.0,111020.0,0.74456184]
[1756829071198,0.3608,111040.0,111020.0,0.74456184]
[1756829071402,0.45972,111050.0,111040.0,0.08225]
[1756829071599,0.48228192,111050.0,111040.0,0.47984314]
[1756829071817,0.48228192,111050.0,111040.0,0.45717314]
[1756829072305,0.0356,111040.0,111030.0,0.49315314]
[1756829072511,0.44539,111040.0,111030.0,0.53942314]
[1756829072914,0.08459,111040.0,111030.0,0.53942314]
[1756829073116,0.53820348,111040.0,111030.0,0.08225]
[1756829073420,0.53820348,111040.0,111030.0,0.53942314]
[1756829074910,0.53920348,111040.0,111030.0,0.53942314]
[1756829076221,0.54817092,111040.0,111030.0,0.53942314]
[1756829077418,0.54817092,111040.0,111030.0,0.04627]
[1756829077614,0.54817092,111040.0,111030.0,0.02267]
[1756829078223,0.08495,111030.0,111020.0,0.0045]
[1756829078514,0.44575,111030.0,111020.0,0.0045]
[1756829078713,0.69575,111030.0,111020.0,0.0045]
[1756829079511,0.69575,111030.0,111020.0,0.0055]
[1756829080514,0.65958,111030.0,111000.0,0.49356314]
[1756829080722,0.65958,111030.0,110990.0,0.08255]
[1756829080723,0.03617,111000.0,110990.0,0.08255]
[1756829080915,0.46035,111000.0,110990.0,0.08255]
[1756829081819,0.46035,111000.0,110990.0,0.04816]
[1756829082017,0.46035,111000.0,110990.0,0.54172314]
[1756829082715,0.44575,111000.0,110990.0,0.54172314]
[1756829083315,0.08495,111000.0,110990.0,0.54172314]
[1756829083511,0.3608,111010.0,110990.0,0.79172314]
[1756829083512,0.39697,111010.0,110990.0,0.79172314]
[1756829083712,0.44498,111010.0,111000.0,0.54086314]
[1756829084418,0.44498,111010.0,111000.0,0.45717314]
[1756829084618,0.44498,111010.0,111000.0,0.47973314]
[1756829084815,0.44498,111010.0,111000.0,0.54086314]
[1756829085210,0.44498,111010.0,111000.0,0.45717314]
[1756829085410,0.08418,111000.0,110990.0,0.54086314]
[1756829085610,0.04801,111000.0,110990.0,0.54410565]
[1756829085819,0.02427,111000.0,110990.0,0.79410565]
[1756829086221,0.08418,111000.0,110990.0,0.79410565]
[1756829086617,0.04801,111000.0,110990.0,0.79410565]
[1756829087418,0.03617,111010.0,110990.0,0.79410565]
[1756829087629,0.44498,111010.0,111000.0,0.54410565]
[1756829088928,0.44598,111010.0,111000.0,0.54410565]
[1756829089116,0.44598,111010.0,111000.0,0.08369]
[1756829089311,0.44598,111010.0,111000.0,0.54410565]
[1756829090022,0.44598,111010.0,111000.0,0.50771565]
[1756829090223,0.44598,111010.0,111000.0,0.54410565]
[1756829091026,0.44598,111010.0,111000.0,0.50771565]
[1756829091326,0.44598,111010.0,111000.0,0.48297565]
[1756829091624,0.03617,111000.0,110990.0,0.54410565]
[1756829091817,0.44498,111000.0,110990.0,0.54410565]
[1756829092325,0.03617,110990.0,110980.0,0.56213405]
[1756829092528,0.44498,110990.0,110980.0,0.56213405]
[1756829093232,0.44498,110990.0,110980.0,0.54410565]
[1756829093527,0.46544567,110990.0,110980.0,0.54410565]
[1756829093923,0.71544567,110990.0,110980.0,0.0473]
[1756829094127,0.71544567,110990.0,110980.0,0.002]
[1756829094639,1.57372567,110990.0,110980.0,0.002]
[1756829095517,0.71544567,110990.0,110980.0,0.02456]
[1756829095724,1.57372567,110990.0,110980.0,0.02456]
[1756829096531,0.46544567,110990.0,110980.0,0.54610565]
[1756829096833,1.32372567,110990.0,110980.0,0.54610565]
[1756829097030,0.46544567,110990.0,110980.0,0.54610565]
[1756829097636,0.42927567,110990.0,110980.0,0.54610565]
[1756829097932,0.06847567,110990.0,110980.0,0.54610565]
[1756829098732,0.10464567,110990.0,110980.0,0.54610565]
[1756829099135,0.02046567,110990.0,110980.0,0.79610565]
[1756829099328,0.02046567,110990.0,110980.0,0.90690565]
[1756829099521,0.02046567,110990.0,110980.0,0.54610565]
[1756829099727,0.02046567,110990.0,110980.0,0.90690565]
[1756829100928,0.02046567,110990.0,110980.0,1.7074122]
[1756829101229,0.02046567,110990.0,110980.0,1.24699655]
[1756829101735,0.02046567,110990.0,110980.0,1.15690565]
[1756829102039,0.02046567,110990.0,110980.0,2.01514565]
[1756829102537,0.02046567,110990.0,110980.0,2.10523655]
[1756829102733,0.02046567,110990.0,110980.0,2.36903655]
[1756829103233,0.44162709,111020.0,111010.0,0.0473]
[1756829103537,0.46536709,111020.0,111010.0,0.54410565]
[1756829104230,0.42919709,111020.0,111010.0,0.54410565]
[1756829104535,0.40545709,111020.0,111010.0,0.54410565]
[1756829104732,0.42919709,111020.0,111010.0,0.08369]
[1756829104937,0.42919709,111020.0,111010.0,0.54410565]
[1756829105330,0.46536709,111020.0,111010.0,0.54410565]
[1756829105741,0.42919709,111020.0,111010.0,0.54410565]
[1756829105934,0.40545709,111020.0,111010.0,0.54410565]
[1756829106138,0.38118709,111020.0,111010.0,0.55310331]
[1756829106331,0.38318709,111020.0,111010.0,0.55310331]
[1756829106727,0.43119709,111020.0,111010.0,0.54410565]
[1756829106932,0.46536709,111020.0,111010.0,0.54410565]
[1756829108742,0.10456709,111020.0,111010.0,0.54410565]
[1756829108941,0.02038709,111020.0,111010.0,1.25877225]
[1756829109242,0.02038709,111020.0,111010.0,1.50877225]
[1756829109539,0.02038709,111020.0,111010.0,1.25417373]
[1756829109843,0.38100553,111040.0,111030.0,0.08142]
[1756829110034,0.42874553,111040.0,111030.0,0.54183565]
[1756829110340,0.46499553,111040.0,111030.0,0.54183565]
[1756829110742,0.42874553,111040.0,111030.0,0.54183565]
[1756829111133,0.46499553,111040.0,111030.0,0.54183565]
[1756829111838,0.47406122,111040.0,111030.0,0.54183565]
[1756829113243,0.47606122,111040.0,111030.0,0.54183565]
[1756829114148,0.68981122,111040.0,111020.0,1.35237565]
[1756829114443,0.44504,111030.0,111020.0,0.50610565]
[1756829114841,0.44504,111030.0,111020.0,0.54026565]
[1756829116137,0.44504,111030.0,111020.0,0.46041565]
[1756829116336,0.03625,111020.0,111010.0,0.82242909]
[1756829116540,0.44504,111020.0,111010.0,0.06405344]
[1756829116743,0.44504,111020.0,111010.0,0.47877909]
[1756829116937,0.69504,111020.0,111010.0,0.01836344]
[1756829117142,0.08424,111000.0,110990.0,0.54026565]
[1756829117343,0.47973113,111000.0,110990.0,1.39790565]
[1756829117546,0.40361113,111000.0,110990.0,1.39790565]
[1756829117741,0.38061113,111000.0,110990.0,1.39790565]
[1756829118251,0.41686113,111000.0,110990.0,1.39790565]
[1756829120154,0.01981113,111000.0,110990.0,2.5592043]
[1756829120355,0.3608,111010.0,110990.0,2.5592043]
[1756829120545,0.3608,111010.0,111000.0,1.0006813]
[1756829120852,0.39705,111020.0,111010.0,0.03416]
[1756829121160,0.44504,111020.0,111010.0,0.54026565]
[1756829121855,0.04799,111020.0,111010.0,0.54026565]
[1756829122156,0.08424,111020.0,111010.0,0.54026565]
[1756829122653,0.04799,111020.0,111010.0,0.54026565]
[1756829122856,0.40879,111020.0,111010.0,0.54026565]
[1756829123056,0.40979,111020.0,111010.0,0.54026565]
[1756829123554,0.40979,111020.0,111010.0,0.07985]
[1756829123753,0.44604,111020.0,111010.0,0.54026565]
[1756829124055,0.44504,111020.0,111010.0,0.54026565]
[1756829124252,0.44604,111020.0,111010.0,0.54026565]
[1756829125166,0.44604,111020.0,111000.0,0.85752]
[1756829125359,0.44504,111010.0,111000.0,0.54026565]
[1756829127168,0.40879,111010.0,110990.0,0.49457565]
[1756829127471,0.45992,111000.0,110990.0,0.48293565]
[1756829128767,0.45992,111000.0,110990.0,0.54026565]
[1756829129165,0.44504,111000.0,110990.0,0.54026565]
[1756829129558,0.3608,111010.0,110990.0,1.3407643]
[1756829129762,0.44504,111020.0,111010.0,0.07985]
[1756829129972,0.40879,111020.0,111010.0,0.54026565]
[1756829130370,0.44504,111020.0,111010.0,0.54026565]
[1756829130762,0.3608,111020.0,111010.0,0.79026565]
[1756829130962,0.38122691,111030.0,111020.0,0.07985]
[1756829131158,0.3608,111030.0,111020.0,0.54026565]
[1756829131368,0.38100553,111040.0,111030.0,0.03416]
[1756829131565,0.38100553,111040.0,111030.0,0.54026565]
[1756829132167,0.38100553,111040.0,111030.0,0.79026565]
[1756829132363,0.02020553,111040.0,111030.0,0.79026565]
[1756829132563,0.02020553,111040.0,111030.0,0.79923612]
[1756829132970,0.02020553,111040.0,111030.0,1.25008672]
[1756829133168,0.02020553,111040.0,111030.0,1.24062976]
[1756829133369,0.02020553,111040.0,111030.0,1.16003612]
[1756829133564,0.05645553,111040.0,111030.0,0.7807006]
[1756829133769,0.10444553,111040.0,111030.0,2.09839625]